Cogmind - Beta 17 @@@ ROGUE MODE // 2026.08.12 @ 12:03:09 Player: Drosofila Result: Core melted Performance ------------- Evolutions (1) 500 Regions Visited (2) 400 Robots Destroyed (20) 100 Value Destroyed (538) 538 Prototype IDs (0) 0 Alien Tech Used (0) 0 Bonus (0) 0 TOTAL SCORE: 1538 Bonus ------- None Cogmind --------- Core Integrity 0/400 Matter 182/300 Energy 118/250 System Corruption 0% Temperature Critical (516) Movement Hovering (240) Ox3 Location -9/Materials Parts ------- > --- POWER (1) -------- Ion Engine > --- PROPULSION (2) --- Airjet > --- UTILITY (3) ------ Large Storage Unit > --- WEAPON (3) ------- Light Assault Rifle > --- INVENTORY (15) --- Light Ion Engine Improved Ion Engine Aluminum Leg Aluminum Leg Peak State ------------ > --- POWER ------------ Improved Ion Engine > --- PROPULSION ------- Airjet Airjet > --- UTILITY ---------- Large Storage Unit > --- WEAPON ----------- Pulse Rifle High-powered Shotgun High-powered Shotgun > --- INVENTORY -------- Ion Engine Light Ion Engine Aluminum Leg Airjet Pulse Rifle Light Assault Rifle [Rating: 19] Favorites ----------- Power Light Ion Engine Engine Light Ion Engine Propulsion Airjet Treads Light Treads Hover Unit Airjet Utility Small Storage Unit Storage Small Storage Unit Weapon High-powered Shotgun Energy Gun Pulse Rifle Ballistic Gun High-powered Shotgun Build | -11 -10 -9 ------- Run | Yrd Mat Mat Slots Evolved 2 | . . 2 Power . | . . . Propulsion . | . . . Utility 1 | . . 1 Weapon 1 | . . 1 Parts Attached 22 | 7 . 15 Power 4 | 2 . 2 Engine 4 | 2 . 2 Core . | . . . Reactor . | . . . Propulsion 6 | 2 . 4 Treads 2 | 2 . . Leg . | . . . Wheel . | . . . Hover 4 | . . 4 Flight . | . . . Utility 2 | 1 . 1 Device . | . . . Storage 2 | 1 . 1 Processor . | . . . Hackware . | . . . Protection . | . . . Artifact . | . . . Weapon 10 | 2 . 8 Energy Gun 3 | . . 3 Energy Cannon . | . . . Ballistic Gun 7 | 2 . 5 Ballistic Cannon . | . . . Launcher . | . . . Special Weapon . | . . . Impact Weapon . | . . . Slashing Weapon . | . . . Piercing Weapon . | . . . Special Melee Weapon . | . . . Unidentified Prototypes . | . . . Parts Lost 6 | . . 6 Power . | . . . Propulsion 3 | . . 3 Utility . | . . . Weapon 3 | . . 3 Highest Loss Streak 5 | . . 5 To Critical Strikes . | . . . Average Backups 5 | 1 3 6 Power 2 | . 2 1 Propulsion 1 | . . 1 Utility . | . . . Weapon 1 | . . 2 Tool/Special . | . . . Unused Backups 5 | . . 5 Power 2 | . . 2 Propulsion 3 | . . 3 Utility . | . . . Weapon . | . . . Tool/Special . | . . . Average Slot Usage (%) 77 | . 85 72 Engine 11 | . 14 10 Treads 12 | . 28 3 Hover 10 | . . 17 Storage 12 | . 14 11 Energy Gun 2 | . . 4 Ballistic Gun 26 | . 28 26 Peak Build Rating 19 | 6 6 19 Average Rating 11 | 4 6 15 On Entrance 4 | . 6 6 Avg Prop Armor Cover (%) . | . . . Naked Turns . | . . . Heaviest Build 36 | 11 11 36 Greatest Support 40 | 40 40 40 Greatest Overweight (x) 3 | 1 . 3 Average Overweight (x) . | . . 1 Largest Inventory Capacity 15 | 8 8 15 Average Capacity 9 | 7 8 10 Most Carried 8 | 5 5 8 Average Carried 5 | 1 3 6 Final Capacity 15 | 8 8 15 Final Carried 5 | 2 5 4 Class Distribution -------------------- 56% | Mutant 43% | Gunner Dominant Class ---------------- Mutant | -10/Materials Gunner | -9/Materials Resources | -11 -10 -9 ----------- Run | Yrd Mat Mat Matter Collected 684 | 294 44 346 Remotely . | . . . Salvage Created 655 | 97 152 406 Parts 36 | 4 8 24 Haulers Intercepted . | . . . Recyclers Shooed . | . . . Parts Field Recycled . | . . . Retrieved Matter . | . . . Parts Self-Destructed . | . . . Prevented . | . . . Parts Restored . | . . . Kills | -11 -10 -9 ------- Run | Yrd Mat Mat Combat Hostiles Destroyed 18 | . 5 13 Guns 18 | . 5 13 Classes Destroyed 5 | 1 2 2 Recycler 1 | 1 . . Watcher 1 | . . 1 Swarmer 6 | . 3 3 Grunt 10 | . 2 8 Sentry 2 | . . 2 Best Kill Streak 5 | 1 5 4 Combat Bots Only 5 | . 5 4 Max Kills in Single Turn 3 | 1 2 3 Gunslinging . | . . . Exploded . | . . . Melee . | . . . Uniques/NPCs Destroyed . | . . . Combat | -11 -10 -9 -------- Run | Yrd Mat Mat Hostile Shots Fired 128 | . 16 112 Missed 31 | . 4 27 Hits 97 | . 12 85 Projectile 97 | . 12 85 Critical Strikes 2 | . . 2 Damage Taken 1327 | . 132 1195 Core 442 | . 26 416 Absorbed by Shields . | . . . Core Remaining (%) 94 | 100 89 . Volleys Fired 59 | 5 11 43 Largest 3 | 2 2 3 Hottest 166 | 40 40 166 Shots Fired 140 | 8 22 110 Gun 140 | 8 22 110 Cannon . | . . . Launcher . | . . . Special . | . . . Kinetic 108 | 8 22 78 Thermal 32 | . . 32 Explosive . | . . . Electromagnetic . | . . . Robot Hit Streak 12 | 3 10 12 Robot Miss Streak 8 | 3 3 8 Penetration Max . | . . . Secondary Targets 5 | . 2 3 Max Gunslinging Chain 1 | . 1 1 Shots Hit Robots 83 | 4 16 63 Core Hits 33 | 2 8 23 Critical Kills . | . . . Critical Parts Destroyed . | . . . Critical Strikes 1 | . . 1 Burn 1 | . . 1 Melee Attacks . | . . . Impact . | . . . Slashing . | . . . Piercing . | . . . Sneak Attacks . | . . . Combat Hostiles . | . . . Follow-up Attacks . | . . . Damage Inflicted 1381 | 46 192 1143 Guns 1365 | 46 192 1127 Cannons . | . . . Explosions . | . . . Melee . | . . . Ramming 16 | . . 16 Kinetic 978 | 46 192 740 Thermal 387 | . . 387 Explosive . | . . . Electromagnetic . | . . . Impact . | . . . Slashing . | . . . Piercing . | . . . Highest Corruption . | . . . Average Corruption . | . . . Corruption Purged . | . . . Corruption Blocked . | . . . Overload Shots . | . . . Overflow Damage . | . . . Projectiles . | . . . Explosions . | . . . Melee . | . . . Knockbacks . | . . . Impact . | . . . Kinetic . | . . . Secondary . | . . . Self-Inflicted Damage 8 | . . 8 Shots . | . . . Rammed 2 | . . 2 Targets Rammed 2 | . . 2 Kicked . | . . . Crushed . | . . . Highest Temperature 601 | . 18 601 Average Temperature 118 | . 9 124 Received Heat Transfer 594 | . 54 540 Effects 12 | . . 12 Shutdowns 3 | . . 3 Energy Bleed 2 | . . 2 Interference 2 | . . 2 Matter Decay 1 | . . 1 Damage (minor) 2 | . . 2 Damage (core) 2 | . . 2 Siege Activations . | . . . Martial Activations . | . . . Shielding Activations . | . . . Robots Disrupted . | . . . Combat Hostiles . | . . . Robots Corrupted . | . . . Combat Hostiles . | . . . Parts Fried . | . . . Impact Corruptions . | . . . Robots Melted . | . . . Combat Hostiles . | . . . Parts Melted . | . . . Heat Transferred 902 | . . 902 Parts Sabotaged . | . . . Parts Stolen . | . . . Parts Stripped . | . . . Power Chain Reactions . | . . . Alert | -11 -10 -9 ------- Run | Yrd Mat Mat Maximum Alert Level . | . . . Low Security (%) 100 | 100 100 100 Level 1 . | . . . Level 2 . | . . . Level 3 . | . . . Level 4 . | . . . Level 5 . | . . . High Security . | . . . Max Security . | . . . Peak Influence 133 | 5 110 133 Initial 3 | . . 3 Average 33 | . 28 40 Influence Increases 492 | 5 120 367 Destroy 0b10 Robot/C 360 | . 100 260 Destroy 0b10 Robot/NC 10 | 5 . 5 Destroy Leader 102 | . 20 82 Destroy Structure 5 | . . 5 Lose Combat Pursuer 15 | . . 15 Influence Decreases 430 | 5 112 313 Entered New Map 5 | . . 5 Time Decay 365 | 5 112 248 Lost Part 60 | . . 60 Squads Dispatched 4 | . . 4 Investigation 1 | . . 1 Extermination . | . . . Reinforcement 3 | . . 3 Assault . | . . . Garrison . | . . . Intercept . | . . . Searches Triggered . | . . . Construction Impeded . | . . . Haulers Reinforced . | . . . Active Scanning Responses . | . . . Cargo Convoy Interrupts . | . . . Stealth | -11 -10 -9 --------- Run | Yrd Mat Mat Distress Signals 2 | . . 2 Communications Jammed . | . . . Distress Signals . | . . . Times Spotted 30 | . 4 26 Peak Tracking Total 4 | . 3 4 Tactical Retreats 1 | . . 1 Traps | -11 -10 -9 ------- Run | Yrd Mat Mat Traps Triggered 2 | . . 2 Indirectly . | . . . Trap Hack Attempts . | . . . Triggered . | . . . Disarmed . | . . . Reprogrammed . | . . . Reused . | . . . Traps Extracted . | . . . Installed . | . . . Triggered . | . . . Machines | -11 -10 -9 ---------- Run | Yrd Mat Mat Machines Disabled . | . . . Max in Single Turn . | . . . Machines Repaired . | . . . Machines Dismantled . | . . . Machines Sabotaged . | . . . Overloaded Fab Kills . | . . . Hacking | -11 -10 -9 --------- Run | Yrd Mat Mat Machines Accessed . | . . . Terminals . | . . . Fabricators . | . . . Repair Stations . | . . . Recycling Units . | . . . Scanalyzers . | . . . Garrison Access . | . . . Total Hacks . | . . . Successful . | . . . Failed . | . . . Catastrophic . | . . . Database Lockouts . | . . . Manual . | . . . Terminals . | . . . Fabricators . | . . . Repair Stations . | . . . Recycling Units . | . . . Scanalyzers . | . . . Garrison Access . | . . . Terminal Hacks . | . . . Fabricator Hacks . | . . . Repair Station Hacks . | . . . Recycling Unit Hacks . | . . . Scanalyzer . | . . . Garrison Access Hacks . | . . . Unauthorized Hacks . | . . . Terminals . | . . . Fabricators . | . . . Repair Stations . | . . . Recycling Units . | . . . Scanalyzers . | . . . Garrison Access . | . . . Data Cores Recovered . | . . . Used . | . . . Hacking Detections . | . . . Full Trace Events . | . . . Feedback Events . | . . . Feedback Blocked . | . . . Robot Schematics Acquired . | . . . Robots Built . | . . . Authchips . | . . . Time . | . . . Total Robot Build Rating . | . . . Part Schematics Acquired . | . . . Parts Built . | . . . Authchips . | . . . Time . | . . . Total Part Build Rating . | . . . Part Studies Acquired . | . . . Parts Repaired . | . . . Time . | . . . Parts Recycled . | . . . Recycled Matter . | . . . Retrieved Matter . | . . . Retrieved Components . | . . . Parts Scanalyzed . | . . . Part Schematics Acquired . | . . . Parts Damaged . | . . . Bothacking | -11 -10 -9 ------------ Run | Yrd Mat Mat Used RIF Installer . | . . . Robots Hacked . | . . . Non-combat . | . . . Combat . | . . . Robot Hacks Applied . | . . . Relay Couplers Released . | . . . Fabnet Peak Effective % . | . . . Robots Rewired . | . . . Allies Hacked . | . . . Hacks Repelled . | . . . Allies | -11 -10 -9 -------- Run | Yrd Mat Mat Total Allies . | . . . Largest Group . | . . . Highest-Rated Group . | . . . Highest-Rated Ally . | . . . Total Orders . | . . . Ally Attacks . | . . . Total Damage . | . . . Kills . | . . . Allies Corrupted . | . . . Allies Melted . | . . . Intel | -11 -10 -9 ------- Run | Yrd Mat Mat Active Infowar (turns) . | . . . Robot Analysis Total . | . . . Derelict Logs Recovered . | . . . Drone Launches . | . . . Drone Recoveries . | . . . Exploration | -11 -10 -9 ------------- Run | Yrd Mat Mat Turns Passed 1391 | 90 474 827 Spaces Moved 704 | 56 269 379 Core 27 | 27 . . Treads 363 | 29 269 65 Legs . | . . . Wheels . | . . . Hover 314 | . . 314 Flight . | . . . Fastest Speed 50 | 50 160 116 Average Speed 148 | 109 160 145 Slowest Speed 240 | 160 160 240 Overloaded Moves . | . . . Propulsion Burnouts . | . . . Robots Hopped . | . . . Potential Cave-ins . | . . . Cave-ins Triggered . | . . . Exploration Rate (%) 28 | 5 44 36 Regions Visited 2 Branch Regions . Pre-discovered Areas . | . . . Known Exits Taken . | . . . Unknown Exits Taken 2 | 1 1 . Scrap Searched . | . . . Spaces Dug . | . . . Terrain Destroyed . | . . . Melee . | . . . Projectile . | . . . AOE . | . . . Terrain Rammed . | . . . Walls Destroyed . | . . . Machines Disabled . | . . . Actions | -11 -10 -9 --------- Run | Yrd Mat Mat Total 941 | 76 293 572 Wait 120 | 1 11 108 Move 702 | 55 268 379 Hop . | . . . Pick Up 25 | 7 3 15 Fast Attach 2 | 1 . 1 Attach 17 | 5 . 12 Detach . | . . . Swap 4 | 2 . 2 Drop 10 | . . 10 Fire 59 | 5 11 43 Melee . | . . . Ram 2 | . . 2 Kick . | . . . Crush . | . . . Escape Stasis . | . . . Rewire . | . . . Trap . | . . . Miscellaneous . | . . . Route ------- -11/Scrapyard -10/Materials (discovered 3 exits: [*Mat x2] / [*Sub]) -9/Materials History --------- Turn | Location | Event 9 | -11/Scrapyard | Discovered new exit (range 15) 91 | -11/Scrapyard | Entered Materials 92 | -10/Materials | Met a group of wandering Federalists 171 | -10/Materials | Discovered new exit (range 9) 223 | -10/Materials | Discovered new exit (range 3) 301 | -10/Materials | Build established: Mutant 353 | -10/Materials | Discovered new exit (range 16) 565 | -10/Materials | Entered another Materials area 565 | -9/Materials | Evolved 2 slots: Utility x1, Weapon x1 967 | -9/Materials | Build established: Gunner 1361 | -9/Materials | Core integrity fell below 50% 1385 | -9/Materials | Core integrity fell below 20% 1393 | -9/Materials | Core melted Last Messages --------------- G-34 Mercenary destroyed. Power failure, Imp. Ion Engine shutdown. Pulse Rifle destroyed. U-05 Engineer builds a Door. Overheating: Energy bleed (-38). Airjet destroyed. Overheating: Matter decay (-39). Overheating: Imp. Ion Engine damaged (-14). Dropped Broken Hpw. Shotgun. Overheating: Core damaged (-72). Pulse Rifle destroyed. Power failure, Imp. Ion Engine shutdown. Overheating: System interference. Lgt. Assault Rifle temporarily disabled. Sml. Laser temporarily disabled. Dropped Sml. Laser. U-05 Engineer lays Concrete. Overheating: Imp. Ion Engine damaged (-6). Power failure, Ion Engine shutdown. Overheating: Core damaged (-72). Map ----- +----------------------------------------------------+ | ????# ?????? #?????????? | | ##### ?? ????? #?????????? | | ??????? T ??????????? | | ###### ########### ??????????? | | ###### ## ## #??????????? | | # ## ## #??????????? | | """ + + ## #??????????? | | """ ##### ## #??#####???? | | """ ############"## #? #???? | | + # T #???? | | # # #???? | | ###+## * " #???? | | # #???? | | #? #???? | | ! #??#####???? | | #################### #??????????? | | ???????????????????# #??#####???? | | ????????????#??????# #? #???? | | ????????????# ????# #? #???? | | ????????????# " ??# # #???? | | ????????????# T # # #???? | | ????????????# " + #???????? | | ????????????# ! # # ##???????? | | ????????????#####?## ###????????? | | ???????####+####### ######????? | | ????? g @ #????? | | ????? o ug [ #????? | | ????????###+####### ##+###????? | | ??????????????????##+### ??????? | | ?????????????????? ??? ??????? | | ???????????????? ?????# "?????? | | ??????????????# ??????# "?????? | | ??????????????#????????# ????? | | ???????????????????????#"" ""????? | | ???????????????????????#"T """???? | | ???????????????????????#"" ""????? | | ???????????????????????? ?????? | | ??????????????????????????##?????? | | ?????????????????????????????????? | | | | | | | | | | | | | | | | | | | | | | | +----------------------------------------------------+ Best States ------------- Heat Dissipation 28 Energy Generation 12 Energy Capacity 265 Matter Stores 300 Matter Capacity 300 Sight Range 16 Terrain Scan Density 10 Evasion (%) 50 Recoil Reduction 2 Item Schematics ----------------- None Robot Schematics ------------------ None Fabricated ------------ Nothing Repaired ---------- Nothing Studied --------- None Alien Tech Used ----------------- None Achievements -------------- None Challenges ------------ None Game ------ Seed TeleporterZhirovWyrmscale Manual? 0 Play Time 00:15:05 Cumulative 3.1 hours Start 2026.08.12 @ 11:46:29 End 2026.08.12 @ 12:03:09 Sessions 1 Manual Loads 0 Difficulty Rogue Special Mode None Game No. 6 Rogue 6 Adventurer 0 Explorer 0 Win Type - Total 0 Types 0/0/0/0/0/0/0/0/0/0 Lore% 0 Gallery% 5 Achievement% 5 Wizard Run 0 Options --------- Layout 0 ASCII 0 Keyboard 0 Movement Mouse Keybinds 0 Fullscreen 1 Font 18/Terminus Map View 38x25 Zoom Use 97% Tactical HUD 0 Map Filters NONE Filters NONE Steam 1 RUN: bd1c6bd1-4294-452e-ac3e-f83f87f9be00